bitfinex-derivatives/quotes_SOLF0:USTF0_20240923
["timestamp","ask_amount","ask_price","bid_price","bid_amount"]
[1727075136687,7.32,147.05,146.94,2.6563]
[1727075136891,7.32,147.03,146.99,7.32]
[1727075137092,7.32,147.02,146.99,7.32]
[1727075137690,3.4011,147.01,146.99,7.32]
[1727075142397,7.32,147.06,147.0,7.32]
[1727075142991,3.4007,147.02,147.0,7.32]
[1727075143687,7.32,147.03,146.98,7.32]
[1727075143893,7.32,147.02,146.98,7.32]
[1727075144398,3.401,147.01,146.98,10.7216]
[1727075149199,17.89158113,147.07,146.98,7.32]
[1727075149406,7.32,147.06,147.01,7.32]
[1727075149996,3.4006,147.03,147.01,7.32]
[1727075150398,7.32,147.06,147.01,7.32]
[1727075151202,3.4007,147.02,147.01,7.32]
[1727075152305,3.4005,147.03,147.01,7.32]
[1727075152506,3.4005,147.03,146.94,2.6563]
[1727075152507,2.8252,147.07,147.02,7.32]
[1727075153004,3.4003,147.04,147.02,7.32]
[1727075155117,10.1452,147.07,147.02,7.32]
[1727075155118,3.4004,147.03,147.02,7.32]
[1727075159418,3.4004,147.03,147.01,7.32]
[1727075159618,3.4004,147.03,147.0,10.721]
[1727075161226,3.4004,147.03,147.01,7.32]
[1727075163218,7.32,147.04,146.98,7.32]
[1727075163616,3.401,147.01,146.98,7.32]
[1727075163817,7.32,147.03,146.98,7.32]
[1727075164419,7.32,147.0,146.94,1.3107]
[1727075164631,7.32,147.0,146.95,13.83206056]
[1727075164818,7.32,147.0,146.96,7.32]
[1727075165018,3.4015,146.99,146.97,7.32]
[1727075165719,3.4015,146.99,146.96,7.32]
[1727075170026,3.4011,147.01,146.98,7.32]
[1727075170221,3.4011,147.01,147.0,7.32]
[1727075170435,7.32,147.05,147.0,7.32]
[1727075170726,7.32,147.05,146.94,1.3107]
[1727075170727,3.4008,147.02,147.01,7.32]
[1727075175638,7.32,147.03,146.94,1.3107]
[1727075175834,7.32,147.0,146.97,7.32]
[1727075176035,7.32,147.01,146.97,7.32]
[1727075176230,3.4015,146.99,146.97,7.32]
[1727075179344,7.32,146.98,146.92,78.09427592]
[1727075179640,7.32,146.95,146.93,6.5168473]
[1727075179834,7.32,146.95,146.9,7.32]
[1727075180032,3.4027,146.94,146.91,6.51780636]
[1727075180232,3.4027,146.94,146.92,6.51780636]
[1727075180540,3.4027,146.94,146.9,10.7234]
[1727075180738,3.4027,146.94,146.91,6.51607484]
[1727075180941,3.4027,146.94,146.9,10.7234]
[1727075181142,3.4027,146.94,146.91,6.51607484]
[1727075181347,3.4028,146.93,146.91,6.51607484]
[1727075181640,3.4028,146.93,146.9,10.7234]
[1727075181836,3.4028,146.93,146.91,6.5140314]
[1727075182034,3.4025,146.95,146.91,7.32]
[1727075182340,11.5087,147.0,146.94,7.32]
[1727075182538,11.5087,147.0,146.96,7.32]
[1727075182735,3.4017,146.98,146.96,7.32]
[1727075184835,6.798,147.1,146.97,7.32]
[1727075185036,7.32,147.02,146.98,7.32]
[1727075185441,3.4013,147.0,146.98,7.32]
[1727075187040,3.4014,146.99,146.97,7.32]
[1727075195240,1.4119,147.04,146.98,7.32]
[1727075195441,7.32,147.03,146.98,7.32]
[1727075195744,3.401,147.01,146.98,7.32]
[1727075198252,3.401,147.01,146.98,10.7216]
[1727075201250,3.401,147.01,146.98,3.4016]
[1727075201449,3.401,147.01,146.99,7.32]
[1727075201849,3.401,147.01,146.98,3.4016]
[1727075202147,3.401,147.01,146.99,7.32]
[1727075202342,3.4008,147.02,147.0,7.32]
[1727075203150,3.401,147.01,146.98,3.4015]
[1727075203344,3.401,147.01,146.98,10.7215]
[1727075204550,3.401,147.01,146.99,7.32]
[1727075205548,3.4008,147.02,146.99,7.32]
[1727075209456,3.4009,147.01,146.99,7.32]
[1727075209750,3.4009,147.01,146.98,7.32]
[1727075209956,3.4012,147.0,146.98,7.32]
[1727075210653,7.32,147.01,146.95,3.4022]
[1727075210846,7.32,147.01,146.96,13.83251337]
[1727075211049,7.32,147.01,146.96,7.32]
[1727075211453,3.4015,146.99,146.95,3.4022]
[1727075211653,7.32,147.02,146.97,7.32]
[1727075211854,7.32,147.02,146.98,7.32]
[1727075212753,3.4013,147.0,146.98,7.32]
[1727075213656,3.4014,146.99,146.98,7.32]
[1727075214352,7.32,147.02,146.98,7.32]
[1727075214353,3.4012,147.0,146.98,7.32]
[1727075214656,3.4009,147.02,146.99,7.32]
[1727075215659,3.401,147.01,146.99,7.32]
[1727075216959,3.401,147.01,146.98,10.7215]
[1727075218160,8.7446,147.03,146.98,7.32]
[1727075218965,3.4014,146.99,146.97,7.32]
[1727075219155,7.32,147.01,146.97,7.32]
[1727075219354,7.32,146.98,146.9,1.398]
[1727075219661,7.32,146.98,146.94,7.32]
[1727075220058,7.32,146.99,146.94,7.32]
[1727075220251,8.7094,147.0,146.96,7.32]
[1727075220562,1.3894,147.0,146.96,7.32]
[1727075221159,3.4015,146.99,146.96,7.32]
[1727075221458,1.3894,147.0,146.96,7.32]
[1727075221660,3.4014,146.99,146.96,7.32]
[1727075222057,1.3894,147.0,146.96,7.32]
[1727075223860,1.3894,147.0,146.95,3.4021]
[1727075223861,7.32,146.97,146.9,1.398]
[1727075224053,7.32,146.97,146.93,7.32]
[1727075224255,7.32,146.97,146.94,6.51513191]
[1727075224453,7.32,146.97,146.93,7.32]
[1727075224766,7.32,146.97,146.94,6.51518316]
[1727075225062,7.32,146.97,146.93,7.32]
[1727075225260,7.32,146.97,146.94,6.51522438]
[1727075225561,7.32,146.97,146.93,7.32]
[1727075225759,3.4022,146.96,146.93,10.7227]
[1727075226165,7.32,146.98,146.94,13.83536706]
[1727075226468,3.4017,146.98,146.95,7.32]
[1727075226769,3.4017,146.98,146.9,4.81120527]
[1727075226960,3.4019,146.97,146.95,7.32]
[1727075227957,3.4021,146.96,146.93,3.4027]
[1727075228266,3.4021,146.96,146.94,7.32]
[1727075229154,3.4021,146.96,146.93,7.32]
[1727075232167,3.4021,146.96,146.91,3.4031]
[1727075232168,7.32,146.96,146.91,3.4031]
[1727075232355,7.32,146.96,146.91,10.7231]
[1727075232560,3.4025,146.94,146.91,10.7231]
[1727075232756,3.4025,146.94,146.92,7.32]
[1727075233165,10.7223,146.96,146.92,10.7229]
[1727075233359,7.32,146.96,146.92,10.7229]
[1727075233563,1.3799,146.98,146.92,7.32]
[1727075233761,1.3799,146.98,146.95,7.32]
[1727075234658,3.4021,146.96,146.94,7.32]
[1727075235665,7.32,146.96,146.92,7.32]
[1727075235870,7.32,146.96,146.95,1.0]
[1727075236566,7.32,146.96,146.91,3.4032]
[1727075237073,10.7221,146.96,146.95,1.0]
[1727075245777,3.4026,146.94,146.92,7.32]
[1727075246883,3.4028,146.93,146.91,3.4032]
[1727075247080,7.32,146.92,146.88,1.3294]
[1727075247285,7.32,146.89,146.83,2.8314]
[1727075247580,3.4035,146.9,146.86,7.32]
[1727075247875,7.32,146.91,146.86,3.4043]
[1727075248184,3.4039,146.88,146.83,2.8314]
[1727075248372,3.4039,146.88,146.84,85.44329933]
[1727075248870,7.32,146.89,146.85,7.32]
[1727075249074,10.7238,146.89,146.85,7.32]
[1727075249475,7.32,146.89,146.84,78.12329933]
[1727075249676,7.32,146.89,146.84,85.44329933]
[1727075250283,3.404,146.88,146.84,88.84809933]
[1727075252679,3.404,146.88,146.84,10.7248]
[1727075252986,3.4042,146.87,146.84,7.32]
[1727075253175,3.4042,146.87,146.83,12.129]
[1727075254588,7.32,146.88,146.84,3.4048]
[1727075254589,10.724,146.88,146.84,3.4048]
[1727075254785,10.724,146.88,146.84,10.7248]
[1727075255384,10.724,146.88,146.84,3.4048]
[1727075255579,7.32,146.88,146.84,10.7248]
[1727075255784,3.4042,146.87,146.84,7.32]
[1727075256281,3.4041,146.88,146.85,7.32]
[1727075257082,3.4042,146.87,146.85,7.32]
[1727075259584,3.4042,146.87,146.83,12.1289]
[1727075259787,3.4042,146.87,146.86,1.0]
[1727075260988,3.404,146.88,146.86,1.0]
[1727075261293,7.32,146.89,146.86,1.0]
[1727075261490,7.32,146.88,146.86,1.0]
[1727075261689,3.4042,146.87,146.86,1.0]
[1727075264396,10.7242,146.87,146.86,1.0]
[1727075269700,3.4048,146.85,146.81,3.4055]
[1727075269900,7.32,146.84,146.8,7.32]
[1727075270096,7.32,146.84,146.81,3.4055]
[1727075270806,7.32,146.84,146.81,10.7255]
[1727075271007,7.32,146.84,146.83,1.0]
[1727075271305,3.4046,146.86,146.83,1.0]
[1727075271508,7.32,146.84,146.83,1.0]
[1727075272402,4.1343,146.92,146.83,1.0]
[1727075272910,7.32,146.87,146.83,1.0]
[1727075273104,10.7244,146.87,146.83,4.4049]
[1727075274408,3.4044,146.86,146.83,4.4049]
[1727075274812,10.7244,146.86,146.83,1.0]
[1727075275613,10.7247,146.85,146.83,1.0]
[1727075276608,3.4048,146.84,146.83,1.0]
[1727075277209,10.7248,146.84,146.83,1.0]
[1727075277800,7.32,146.84,146.67,78.09427592]
[1727075277999,7.32,146.84,146.7,1.4072]
[1727075278000,4.1042,146.83,146.7,1.4072]
[1727075278210,7.32,146.73,146.7,1.4072]
[1727075278411,7.32,146.75,146.7,8.7272]
[1727075278708,5.1042,146.83,146.7,8.7272]
[1727075278709,7.32,146.73,146.7,1.4072]
[1727075279408,7.32,146.71,146.68,1.3261]
[1727075280012,7.32,146.7,146.64,3.34991705]
[1727075280311,1.3592,146.76,146.67,7.32]
[1727075280511,7.32,146.72,146.67,7.32]
[1727075280707,7.32,146.73,146.69,3.4083]
[1727075281313,7.32,146.72,146.68,3.4085]
[1727075282308,7.32,146.72,146.69,3.4083]
[1727075282611,7.32,146.73,146.68,7.32]
[1727075282806,7.32,146.73,146.7,3.408]
[1727075283609,7.32,146.73,146.71,3.4078]
[1727075284111,7.32,146.73,146.7,3.408]
[1727075285115,7.32,146.73,146.69,7.32]
[1727075285416,7.32,146.76,146.71,7.32]
[1727075285808,7.32,146.76,146.72,3.4076]
[1727075286712,7.32,146.73,146.62,7.82770109]
[1727075287011,1.3524,146.77,146.62,1.3812]
[1727075287214,7.32,146.69,146.64,7.32]
[1727075287514,7.32,146.69,146.66,3.4088]
[1727075287711,7.32,146.7,146.66,3.4088]
[1727075288009,7.32,146.7,146.65,7.32]
[1727075288010,7.32,146.7,146.67,3.4088]
[1727075288212,3.6712,146.76,146.66,7.32]
[1727075288407,7.32,146.72,146.66,7.32]
[1727075289324,7.32,146.7,146.65,7.32]
[1727075289515,7.32,146.67,146.62,1.3812]
[1727075289710,7.32,146.67,146.65,3.4091]
[1727075289916,7.32,146.67,146.62,1.3812]
[1727075289917,7.32,146.69,146.64,7.32]
[1727075290811,7.32,146.67,146.65,3.4092]
[1727075291716,7.32,146.69,146.66,3.409]
[1727075291907,3.6712,146.76,146.64,7.32]
[1727075292108,7.32,146.67,146.61,1.3007]
[1727075292308,7.32,146.65,146.61,1.3007]
[1727075292818,7.32,146.66,146.61,1.3007]
[1727075293021,7.32,146.66,146.6,7.32]
[1727075293317,7.32,146.64,146.61,3.4102]
[1727075293918,7.32,146.66,146.61,7.32]
[1727075294315,11.46,146.67,146.59,4.1131]
[1727075294511,11.46,146.65,146.59,2.7307]
[1727075294914,11.46,146.65,146.59,1.3058]
[1727075295116,11.46,146.65,146.6,3.4104]
[1727075296321,11.46,146.65,146.58,3.4109]
[1727075296519,11.46,146.65,146.55,12.8911]
[1727075296818,3.4095,146.64,146.58,3.4109]
[1727075297417,3.4095,146.64,146.55,12.8911]
[1727075297617,14.8693,146.65,146.55,1.4311]
[1727075297815,14.8693,146.65,146.56,11.46]
[1727075298013,3.9851,146.7,146.56,11.46]
[1727075298215,14.8693,146.65,146.6,3.4102]
[1727075298417,11.46,146.65,146.56,11.46]
[1727075298816,11.46,146.65,146.58,11.46]
[1727075299019,11.46,146.65,146.56,11.46]
[1727075299225,3.4096,146.64,146.59,3.4105]
[1727075300723,14.8693,146.65,146.6,3.4104]
[1727075301221,3.4096,146.64,146.59,3.4105]
[1727075301418,11.46,146.6,146.52,3.47662464]
[1727075301616,11.46,146.68,146.5,11.46]
[1727075301617,11.46,146.59,146.5,11.46]
[1727075302017,11.46,146.61,146.52,11.46]
[1727075302924,11.46,146.59,146.49,14.2184]
[1727075303123,11.46,146.59,146.5,1.25400765]
[1727075303513,11.46,146.59,146.54,3.4117]
[1727075304019,11.46,146.56,146.45,81.84]
[1727075304221,14.8714,146.56,146.46,16.82134501]
[1727075304420,11.46,146.56,146.46,15.5672]
[1727075304618,14.8714,146.56,146.47,1.25428977]
[1727075304921,14.8714,146.56,146.47,4.7374249]
[1727075305125,14.8714,146.56,146.46,15.5672]
[1727075305126,11.46,146.56,146.46,15.5672]
[1727075305321,11.46,146.52,146.47,1.25431378]
[1727075305522,11.46,146.52,146.46,4.1072]
[1727075305817,11.46,146.52,146.49,3.4128]
[1727075306327,11.46,146.52,146.48,3.4132]
[1727075306328,11.46,146.5,146.48,3.4132]
[1727075306629,11.46,146.5,146.43,11.46]
[1727075306827,11.46,146.5,146.44,1.25456142]
[1727075307021,11.46,146.5,146.44,4.65606486]
[1727075307328,11.46,146.52,146.45,1.25456142]
[1727075307633,11.46,146.52,146.48,3.4131]
[1727075308421,11.46,146.52,146.43,11.46]
[1727075308422,14.1445,146.54,146.51,3.4125]
[1727075308822,14.1445,146.54,146.44,14.94445862]
[1727075309022,14.1445,146.54,146.45,1.25442182]
[1727075309221,14.1445,146.54,146.46,1.25442182]
[1727075309422,14.1445,146.54,146.44,1.25442182]
[1727075309617,3.4121,146.53,146.45,1.25448961]
[1727075309825,14.1445,146.54,146.46,1.25448961]
[1727075310025,14.1445,146.54,146.43,11.46]
[1727075310220,17.5565,146.54,146.49,3.4128]
[1727075310924,14.1445,146.54,146.44,3.49251614]
[1727075311122,1.2998,146.55,146.45,12.71449709]
[1727075311319,1.2998,146.55,146.47,11.46]
[1727075311520,1.2998,146.55,146.48,2.68589709]
[1727075311721,1.2998,146.55,146.48,1.4314]
[1727075312324,11.46,146.56,146.48,1.4314]
[1727075312532,11.46,146.56,146.49,1.25431667]
[1727075312726,11.46,146.56,146.53,3.412]
[1727075312922,11.46,146.58,146.48,1.4314]
[1727075313223,11.46,146.58,146.49,1.25421964]
[1727075313430,14.8709,146.58,146.5,1.25421964]
[1727075313633,14.8709,146.58,146.48,2.7571]
[1727075313824,14.8709,146.58,146.54,3.4117]
[1727075314224,14.8709,146.58,146.48,2.7571]
[1727075314225,11.46,146.58,146.49,11.46]
[1727075314419,11.46,146.58,146.5,1.25414457]
[1727075314622,11.46,146.58,146.51,1.25414457]
[1727075314823,11.46,146.58,146.5,1.25414457]
[1727075315028,11.46,146.58,146.51,1.25414356]
[1727075315223,11.46,146.58,146.49,11.46]
[1727075315427,11.46,146.58,146.57,1.0]
[1727075315627,3.4109,146.58,146.57,1.0]
[1727075315931,15.5622,146.59,146.57,1.0]
[1727075317331,12.812,146.59,146.57,1.0]
[1727075317644,16.2227,146.59,146.57,1.0]
[1727075319029,3.4109,146.58,146.57,1.0]
[1727075319333,12.812,146.59,146.55,1.0]
[1727075319532,14.8714,146.56,146.55,1.0]
[1727075320029,11.46,146.56,146.55,1.0]
[1727075321433,11.46,146.56,146.55,4.4116]
[1727075322128,3.411,146.58,146.55,4.4116]
[1727075322330,12.812,146.59,146.55,1.0]
[1727075323938,12.812,146.59,146.56,3.4112]
[1727075324130,12.812,146.59,146.55,1.0]
[1727075324530,12.812,146.59,146.56,3.4113]
[1727075324732,11.46,146.61,146.55,1.0]
[1727075324936,14.2159,146.63,146.6,3.4103]
[1727075326030,14.2159,146.63,146.59,3.4106]
[1727075326231,12.8711,146.63,146.55,3.49573524]
[1727075327141,12.8711,146.63,146.59,4.4105]
[1727075328143,16.2809,146.63,146.59,1.0]
[1727075328938,11.46,146.61,146.59,1.0]
[1727075329443,3.4107,146.59,146.58,1.0]
[1727075329651,14.8707,146.59,146.58,1.0]
[1727075330839,11.46,146.59,146.58,1.0]
[1727075331838,14.8707,146.59,146.58,1.0]
[1727075333534,11.46,146.59,146.58,1.0]
[1727075333843,1.4178,146.6,146.58,1.0]
[1727075336144,1.4178,146.6,146.58,4.4109]
[1727075337251,1.4178,146.6,146.58,3.4109]
[1727075337652,1.4178,146.6,146.57,3.411]
[1727075338349,1.4178,146.6,146.59,1.0]
[1727075340450,11.46,146.61,146.59,4.4107]
[1727075341948,12.8711,146.63,146.6,3.4104]
[1727075342244,11.46,146.63,146.59,1.0]
[1727075342450,11.46,146.63,146.61,3.41]
[1727075342650,11.46,146.65,146.59,1.0]
[1727075343046,11.46,146.65,146.61,3.41]
[1727075343353,11.46,146.65,146.59,1.0]
[1727075343553,11.46,146.65,146.61,3.41]
[1727075343554,14.8694,146.65,146.61,3.41]
[1727075345454,14.8694,146.65,146.62,3.4099]
[1727075346355,14.8694,146.65,146.61,3.4101]
[1727075346655,11.46,146.62,146.59,1.0]
[1727075346948,11.46,146.6,146.59,1.0]
[1727075347555,11.46,146.6,146.52,1.4405]
[1727075347859,11.46,146.58,146.52,1.4405]
[1727075348152,11.46,146.58,146.55,3.4114]
[1727075350758,14.8711,146.58,146.54,3.4117]
[1727075351155,11.46,146.58,146.52,1.4405]
[1727075351658,3.4111,146.57,146.52,1.4405]
[1727075351854,3.4111,146.57,146.5,58.01023322]
[1727075352258,14.871,146.58,146.5,58.01023322]
[1727075352858,14.871,146.58,146.53,3.4118]
[1727075353054,14.871,146.58,146.5,58.01023322]
[1727075353658,14.871,146.58,146.54,3.4117]
[1727075356865,14.871,146.58,146.55,3.4115]
[1727075357061,11.46,146.58,146.55,3.4115]
[1727075357767,11.46,146.58,146.56,3.4113]
[1727075358467,11.46,146.58,146.55,3.4115]
[1727075359767,14.871,146.58,146.55,3.4115]
[1727075360269,7.34,146.56,146.55,3.4115]
[1727075360759,10.7514,146.56,146.53,3.4119]
[1727075361069,7.34,146.54,146.53,3.4119]
[1727075361668,7.34,146.54,146.52,3.4122]
[1727075361865,7.34,146.53,146.52,3.4122]
[1727075362372,11.46,146.54,146.52,3.4122]
[1727075363768,11.46,146.54,146.53,3.412]
[1727075364165,11.46,146.54,146.52,3.4122]
[1727075364569,11.46,146.54,146.5,58.01023322]
[1727075364764,11.46,146.54,146.48,2.716]
[1727075365067,14.872,146.54,146.5,3.4125]
[1727075365476,3.4121,146.53,146.5,3.4125]
[1727075365779,14.8721,146.53,146.49,9.92582269]
[1727075365971,14.8721,146.53,146.49,3.4129]
[1727075366272,3.4123,146.52,146.49,3.4129]
[1727075367973,3.4123,146.52,146.48,3.4132]
[1727075368178,3.4125,146.51,146.48,3.4132]
[1727075368372,11.46,146.51,146.44,2.7077]
[1727075368573,11.46,146.51,146.46,3.4135]
[1727075368776,11.46,146.48,146.46,3.4135]
[1727075369278,11.46,146.48,146.45,3.4138]
[1727075371266,11.46,146.48,146.43,3.4142]
[1727075371468,11.46,146.46,146.4,1.3082]
[1727075371872,14.8737,146.46,146.42,3.4145]
[1727075372278,11.46,146.46,146.41,6.50929219]
[1727075372480,14.8737,146.46,146.42,3.4145]
[1727075372874,11.46,146.46,146.4,1.3082]
[1727075373075,11.46,146.46,146.43,3.4142]
[1727075377278,11.46,146.46,146.39,1.3272]
[1727075377279,14.8737,146.46,146.42,3.4145]
[1727075379680,14.8737,146.46,146.43,3.4144]
[1727075379883,11.46,146.46,146.39,19.28410265]
[1727075380184,11.46,146.46,146.44,3.414]
[1727075380885,11.46,146.48,146.45,3.4139]
[1727075381087,11.46,146.48,146.39,12.7872]
[1727075381682,11.46,146.5,146.42,11.46]
[1727075381883,11.46,146.5,146.4,11.46]
[1727075382382,14.8729,146.5,146.46,3.4137]
[1727075382586,11.46,146.5,146.46,3.4137]
[1727075382787,11.46,146.5,146.4,17.95423247]
[1727075382788,3.4127,146.51,146.47,3.4133]
[1727075383085,11.46,146.5,146.4,17.95423247]
[1727075384083,11.46,146.46,146.4,6.49423247]
[1727075384386,11.46,146.45,146.4,6.49423247]
[1727075385188,11.46,146.45,146.43,3.4142]
[1727075385483,11.46,146.45,146.39,1.3272]
[1727075386085,11.46,146.46,146.43,3.4143]
[1727075386491,11.46,146.46,146.39,1.3272]
[1727075388392,7.34,146.45,146.4,7.34]
[1727075389294,7.34,146.45,146.44,3.4141]
[1727075389788,7.34,146.45,146.36,4.82917355]
[1727075389789,10.754,146.45,146.37,7.34]
[1727075389991,7.34,146.41,146.37,7.34]
[1727075390290,11.48,146.44,146.41,3.4148]
[1727075390693,3.414,146.45,146.36,12.58789274]
[1727075390885,14.894,146.45,146.36,6.10047355]
[1727075391091,11.48,146.45,146.41,3.4147]
[1727075391391,11.48,146.45,146.36,9.17211919]
[1727075391594,3.4143,146.44,146.4,3.4151]
[1727075391895,11.48,146.45,146.36,2.6847]
[1727075392091,11.48,146.45,146.42,3.4146]
[1727075392391,11.48,146.46,146.38,11.48]
[1727075392693,11.48,146.46,146.44,3.414]
[1727075394692,11.48,146.46,146.43,3.4143]
[1727075399396,11.48,146.44,146.36,9.16519277]
[1727075399696,11.48,146.44,146.36,2.6847]
[1727075402198,11.48,146.44,146.4,3.4149]
[1727075402594,11.48,146.43,146.36,1.3585]
[1727075402798,11.48,146.43,146.38,3.4154]
[1727075403298,11.48,146.41,146.33,7.89954368]
[1727075403491,11.48,146.41,146.33,4.84889022]
[1727075403695,4.0904,146.47,146.33,16.32889022]
[1727075403897,14.8943,146.44,146.39,3.4153]
[1727075404303,11.48,146.44,146.35,11.48]
[1727075404498,11.48,146.44,146.4,3.415]
[1727075405301,11.48,146.44,146.41,3.4148]
[1727075405502,11.48,146.45,146.36,11.48]
[1727075405797,11.48,146.45,146.42,3.4145]
[1727075406203,11.48,146.45,146.37,1.3879]
[1727075406401,11.48,146.43,146.4,3.415]
[1727075407096,11.48,146.45,146.42,3.4146]
[1727075407505,11.48,146.45,146.41,3.4147]
[1727075407802,11.48,146.45,146.37,1.3879]
[1727075408100,11.48,146.43,146.37,1.3879]
[1727075408492,11.48,146.43,146.39,3.4152]
[1727075409802,14.8944,146.43,146.39,3.4152]
[1727075410405,7.35,146.41,146.39,3.4152]
[1727075410802,7.35,146.41,146.4,3.4151]
[1727075411207,7.35,146.41,146.37,8.7379]
[1727075411610,7.35,146.41,146.38,3.4154]
[1727075411811,7.35,146.4,146.38,3.4154]
[1727075412199,7.35,146.39,146.33,6.25729022]
[1727075412404,7.35,146.39,146.34,7.35]
[1727075413312,7.35,146.39,146.37,3.4157]
[1727075414504,7.35,146.39,146.36,3.416]
[1727075416104,7.35,146.37,146.33,4.76701173]
[1727075416303,7.35,146.36,146.33,1.4084]
[1727075416704,7.35,146.36,146.35,3.4162]
[1727075417207,7.35,146.36,146.34,3.4163]
[1727075417412,7.35,146.35,146.29,6.48940547]
[1727075417607,7.35,146.33,146.29,10.71897847]
[1727075417808,7.35,146.35,146.32,3.4168]
[1727075418205,7.35,146.34,146.29,3.36897847]
[1727075418403,7.35,146.33,146.31,3.417]
[1727075418614,7.35,146.34,146.29,10.8464127]
[1727075418816,1.3942,146.38,146.28,1.3165]
[1727075418817,7.35,146.35,146.31,7.35]
[1727075419208,1.3567,146.4,146.32,7.35]
[1727075419513,7.35,146.38,146.34,7.35]
[1727075420102,7.35,146.38,146.36,3.416]
[1727075420715,7.35,146.39,146.37,3.4158]
[1727075422316,12.8367,146.4,146.37,3.4158]
[1727075424320,12.8367,146.4,146.38,3.4155]
[1727075424816,11.48,146.39,146.34,3.4164]
[1727075425018,11.48,146.37,146.29,11.48]
[1727075425213,11.48,146.39,146.29,11.48]
[1727075425514,11.48,146.39,146.35,3.4161]
[1727075425715,11.48,146.39,146.29,17.97015884]
[1727075426016,3.4156,146.38,146.34,3.4164]
[1727075426211,11.48,146.39,146.29,11.48]
[1727075426414,3.4157,146.38,146.33,3.4165]
[1727075427813,11.48,146.37,146.28,2.7084]
[1727075428023,12.8534,146.37,146.28,2.7084]
[1727075428207,3.4161,146.36,146.31,3.417]
[1727075428415,11.48,146.35,146.31,3.417]
[1727075428723,14.8963,146.35,146.31,3.417]
[1727075429310,11.48,146.35,146.31,3.417]
[1727075429518,11.48,146.35,146.28,3.33344726]
[1727075429519,12.8534,146.37,146.28,14.81344726]
[1727075430019,16.2692,146.37,146.33,3.4166]
[1727075430216,16.2692,146.37,146.28,14.81344726]
[1727075430423,12.8534,146.37,146.28,14.81344726]
[1727075430817,3.416,146.36,146.32,3.4169]
[1727075431122,12.8534,146.37,146.32,3.4169]
[1727075431323,16.2693,146.37,146.32,3.4169]
[1727075431827,3.416,146.36,146.32,3.4169]
[1727075433021,3.416,146.36,146.28,3.37309898]
[1727075433022,12.8367,146.4,146.3,11.48]
[1727075433321,3.4164,146.35,146.29,1.4309]
[1727075433524,11.48,146.36,146.29,1.4309]
[1727075433916,11.48,146.36,146.32,3.4168]
[1727075434320,14.8962,146.36,146.31,3.4172]
[1727075434516,11.48,146.36,146.31,3.4172]
[1727075435122,11.48,146.36,146.32,3.4169]
[1727075435323,11.48,146.38,146.29,1.4309]